Workbook

Sheet Termo CS
C3: CENTRAL TERMOELECTRICA | G3: Financiamiento de la Inversión
C5: Tipo de unidad | D5: SGT 800 | G5: Tasa | H5: 0.045 | I5: anual
C6: Potencia Total ISO (2 unidades) | D6: =D7+D8 -> 95 | E6: MW
C7: Potencia ciclo simple | D7: =47.5*2 -> 95 | E7: MW
C8: Potencia Turbina de Vapor | D8: 0 | E8: MW
C9: Precio FOB | D9: 338 | E9: $us/kW
C11: Potencia Total Sitio | D11: =D6*0.94 -> 89.3 | E11: MW
C12: Potencia ciclo simple | D12: =D11-D13 -> 89.3 | E12: MW
C13: Potencia Turbina de Vapor | D13: 0 | E13: MW
C15: Costo de Instalación
C16: Precio FOB | D16: =D9*D6 -> 32110 | E16: Miles de $us
C17: Transporte + Montaje + Puesta en Marcha | D17: =D16*0.85 -> 27293.5 | E17: Miles de $us
C18: Total Inversión | D18: =SUM(D16:D17) -> 59403.5 | E18: Miles de $us
C19: $us/kW Instalado | D19: =D18/D11 -> 665.212766
C21: Recuperación Inversión
C22: Tasa de retorno | D22: 0.12 | E22: anual
C23: Vida Útil | D23: 20 | E23: años
C24: Repago anual | D24: =PMT(D22,D23,-D18) -> 7952.86811 | E24: Miles de $us/año
C26: Costo de Producción
C27: Heat Rate | D27: 9775 | E27: BTU/kWh
C28: Consumo especifico | D28: =D27/920 -> 10.625 | E28: pc/kWh
C29: Precio del gas | D29: =+Resumen!E12 -> 6.09 | E29: $us/mpc
C30: Costo de Combustible | D30: =D29*D28 -> 64.70625 | E30: $us/MWh
C31: Costo Variable O&M&A | D31: 3.063 | E31: $us/MWh
C32: Total Costo Variable de Producción | D32: =D31+D30 -> 67.76925 | E32: $us/MWh
C34: Factor de Planta | D34: 0.57 | E34: (Equivalente a 5000 horas/año)
C35: Energía generada | D35: =D11*D34*8760 -> 445892.76 | E35: MWh/año
C36: Gas consumido | D36: =D35*D28 -> 4737610.575 | E36: mpc/año
C37: Gas consumido | D37: =D36/35.31/365/1000 -> 0.3675943076 | E37: MM3dia
C39: Costo Total de Producción
C40: Recuperación Inversión | D40: =D24*1000/D35 -> 17.83583145 | E40: $us/MWh
C41: Costo Variable de Producción | D41: =D32 -> 67.76925 | E41: $us/MWh
C42: Costo Total de Producción | D42: =SUM(D40:D41) -> 85.60508145 | E42: $us/MWh

Sheet Termo CC
C3: CENTRAL TERMOELECTRICA CC configuracion 2 x 1 | G3: Financiamiento de la Inversión
C5: Tipo de unidad | D5: SGT 800 | G5: Tasa | H5: 0.045 | I5: anual
C6: Potencia Total ISO | D6: =+D7+D8 -> 142.5 | E6: MW
C7: Potencia ciclo simple | D7: ='Termo CS'!D7 -> 95 | E7: MW
C8: Potencia Turbina de Vapor | D8: =D7*0.5 -> 47.5 | E8: MW
C9: Precio FOB | D9: 964 | E9: $us/kW
C10: Eficiencia | D10: 0.538
C13: Potencia Total Sitio | D13: =+D14+D15 -> 136.8 | E13: MW
C14: Potencia ciclo simple | D14: ='Termo CS'!D12 -> 89.3 | E14: MW
C15: Potencia Turbina de Vapor | D15: =D8 -> 47.5 | E15: MW
C17: Costo de Instalación
C18: Precio FOB | D18: =D9*D6 -> 137370 | E18: Miles de $us
C19: Transporte + Montaje + Puesta en Marcha | D19: =D18*0.8 -> 109896 | E19: Miles de $us
C20: Total Inversión | D20: =SUM(D18:D19) -> 247266 | E20: Miles de $us
C21: $us/kW Instalado | D21: =D20/D13 -> 1807.5
C23: Recuperación Inversión
C24: Tasa de retorno | D24: 0.12 | E24: anual
C25: Vida Útil | D25: 20 | E25: años
C26: Repago anual | D26: =PMT(D24,D25,-D20) -> 33103.67043 | E26: Miles de $us/año
C28: Costo de Producción
C29: Heat Rate | D29: =3412/D10 -> 6342.007435 | E29: BTU/kWh
C30: Consumo especifico | D30: =D29/920 -> 6.893486342 | E30: pc/kWh
C31: Precio del gas | D31: =+Resumen!E12 -> 6.09 | E31: $us/mpc
C32: Costo de Combustible | D32: =D31*D30 -> 41.98133182 | E32: $us/MWh
C33: Costo Variable O&M&A | D33: 2.931 | E33: $us/MWh
C34: Total Costo Variable de Producción | D34: =D33+D32 -> 44.91233182 | E34: $us/MWh
C36: Factor de Planta | D36: 0.7
C37: Energía generada | D37: =D13*D36*8760 -> 838857.6 | E37: MWh/año
C38: Gas consumido | D38: =D37*D30 -> 5782653.409 | E38: mpc/año
C39: Gas consumido | D39: =D38/35.31/365/1000 -> 0.4486798655 | E39: MM3dia
C41: Costo Total de Producción
C42: Recuperación Inversión | D42: =D26*1000/D37 -> 39.46280087 | E42: $us/MWh
C43: Costo Variable de Producción | D43: =D34 -> 44.91233182 | E43: $us/MWh
C44: Costo Total de Producción | D44: =SUM(D42:D43) -> 84.37513269 | E44: $us/MWh

Sheet Hidro
B2: Centrales Hidroeléctricas
B4: Potencia | C4: ='Termo CC'!D13 -> 136.8 | D4: MW
B5: Inversión | C5: 2500 | D5: $us/kW-Instalado
B6: Inversión Total | C6: =C5*C4/1000 -> 342 | D6: Millones de $us
B7: Financiamiento
B8: Tasa | C8: 0.045 | D8: anual
B9: Plazo | C9: 30 | D9: años
B12: Factor de Planta | C12: 0.5
B13: Energía generada | C13: =C12*C4*8760 -> 599184 | D13: MWh
B15: Recuperación de Capital
B16: Plazo | C16: 30 | D16: años
B17: Tasa | C17: 0.1 | D17: anual
B18: Vida Útil | C18: 50 | D18: años
B20: Monto anual a recuperar | C20: =PMT(C17,C16,-C6) -> 36.2791029 | D20: Millones de $us/año
B22: Costo fijo por recuperación de capital | C22: =C20*1000000/C13 -> 60.54751613 | D22: $us/MWh
B23: O&M&A | C23: 2 | D23: $us/MWh
B24: Total Costo de Producción | C24: =SUM(C22:C23) -> 62.54751613 | D24: $us/MWh

Sheet Eolica
B2: Centrales Eolicas
B4: Potencia | C4: ='Termo CC'!D13 -> 136.8 | D4: MW
B5: Inversión | C5: 1750 | D5: $us/kW-Instalado | E5: 1.556451613
B6: Inversión Total | C6: =C5*C4/1000 -> 239.4 | D6: Millones de $us
B7: Financiamiento
B8: Tasa | C8: 0.045 | D8: anual
B9: Plazo | C9: 20 | D9: años
B12: Factor de Planta | C12: 0.35
B13: Energía generada | C13: =C12*C4*8760 -> 419428.8 | D13: MWh
B15: Recuperación de Capital
B16: Plazo | C16: 20 | D16: años
B17: Tasa | C17: 0.1 | D17: anual
B18: Vida Útil | C18: 20 | D18: años
B20: Monto anual a recuperar | C20: =PMT(C17,C16,-C6) -> 28.11983417 | D20: Millones de $us/año
B22: Costo fijo por recuperación de capital | C22: =C20*1000000/C13 -> 67.04316482 | D22: $us/MWh
B23: O&M&A | C23: 5 | D23: $us/MWh
B24: Total Costo de Producción | C24: =SUM(C22:C23) -> 72.04316482 | D24: $us/MWh

Sheet Solar
B2: Centrales Solares
B4: Potencia | C4: ='Termo CC'!D13 -> 136.8 | D4: MW
B5: Inversión | C5: 1200 | D5: $us/kW-Instalado
B6: Inversión Total | C6: =C5*C4/1000 -> 164.16 | D6: Millones de $us
B7: Financiamiento
B8: Tasa | C8: 0.045 | D8: anual
B9: Plazo | C9: 20 | D9: años
B12: Factor de Planta | C12: 0.24
B13: Energía generada | C13: =C12*C4*8760 -> 287608.32 | D13: MWh
B15: Recuperación de Capital
B16: Plazo | C16: 20 | D16: años
B17: Tasa | C17: 0.1 | D17: anual
B18: Vida Útil | C18: 20 | D18: años
B20: Monto anual a recuperar | C20: =PMT(C17,C16,-C6) -> 19.282172 | D20: Millones de $us/año
B22: Costo fijo por recuperación de capital | C22: =C20*1000000/C13 -> 67.04316482 | D22: $us/MWh
B23: O&M&A | C23: 5 | D23: $us/MWh
B24: Total Costo de Producción | C24: =SUM(C22:C23) -> 72.04316482 | D24: $us/MWh

Sheet Geotermico
B2: Centrales Hidroeléctricas
B4: Potencia | C4: ='Termo CC'!D13 -> 136.8 | D4: MW
B5: Inversión | C5: 5500 | D5: $us/kW-Instalado
B6: Inversión Total | C6: =C5*C4/1000 -> 752.4 | D6: Millones de $us
B7: Financiamiento
B8: Tasa | C8: 0.045 | D8: anual
B9: Plazo | C9: 30 | D9: años
B12: Factor de Planta | C12: 0.85
B13: Energía generada | C13: =C12*C4*8760 -> 1018612.8 | D13: MWh
B15: Recuperación de Capital
B16: Plazo | C16: 30 | D16: años
B17: Tasa | C17: 0.1 | D17: anual
B18: Vida Útil | C18: 50 | D18: años
B20: Monto anual a recuperar | C20: =PMT(C17,C16,-C6) -> 79.81402639 | D20: Millones de $us/año
B22: Costo fijo por recuperación de capital | C22: =C20*1000000/C13 -> 78.3556091 | D22: $us/MWh
B23: O&M&A | C23: 3 | D23: $us/MWh
B24: Total Costo de Producción | C24: =SUM(C22:C23) -> 81.3556091 | D24: $us/MWh

Sheet Biomasa
B2: Centrales Hidroeléctricas
B4: Potencia | C4: 20 | D4: MW
B5: Inversión | C5: 4000 | D5: $us/kW-Instalado
B6: Inversión Total | C6: =+C5*C4/1000 -> 80 | D6: Millones de $us
B7: Financiamiento | F7: 28.44935683
B8: Tasa | C8: 0.045 | D8: anual
B9: Plazo | C9: 30 | D9: años
B12: Factor de Planta | C12: 0.85
B13: Energía generada | C13: =C12*C4*8760 -> 148920 | D13: MWh
B15: Recuperación de Capital
B16: Plazo | C16: 30 | D16: años
B17: Tasa | C17: 0.1 | D17: anual
B18: Vida Útil | C18: 30 | D18: años
B20: Monto anual a recuperar | C20: =PMT(C17,C16,-C6) -> 8.48633986 | D20: Millones de $us/año
B22: Costo fijo por recuperación de capital | C22: =C20*1000000/C13 -> 56.98589753 | D22: $us/MWh
B23: Combustible | C23: =+F7 -> 28.44935683 | D23: $us/MWh
B24: O&M&A | C24: 3 | D24: $us/MWh
B25: Total Costo de Producción | C25: =SUM(C22:C24) -> 88.43525436 | D25: $us/MWh

Sheet Resumen
C3: RESUMEN
C4: Tecnología | F4: Ciclo Simple | G4: Ciclo Combinado | H4: Hidroeléctricas | I4: Eólicas | J4: Solares | K4: Geotermico | L4: Biomasa | S4: Precio de Gas (sin IVA) | T4: Ciclo Simple | U4: Ciclo Combinado | V4: Hidroeléctricas | W4: Eólicas | X4: Solares
C5: Inversion | D5: $us/kW-instalado | F5: =+'Termo CS'!D19 -> 665.212766 | G5: =+'Termo CC'!D21 -> 1807.5 | H5: =+Hidro!C5 -> 2500 | I5: =+Eolica!C5 -> 1750 | J5: =+Solar!C5 -> 1200 | K5: =+Geotermico!C5 -> 5500 | L5: =+Biomasa!C5 -> 4000
C8: Factor de Planta | F8: =+'Termo CS'!D34 -> 0.57 | G8: =+'Termo CC'!D36 -> 0.7 | H8: =+Hidro!C12 -> 0.5 | I8: =+Eolica!C12 -> 0.35 | J8: =+Solar!C12 -> 0.24 | K8: =+Geotermico!C12 -> 0.85 | L8: =+Biomasa!C12 -> 0.85 | Q8: 1 | R8: 1.3 | S8: =R8*0.87 -> 1.131 | T8: 32.91570645 | U8: 40.4307165 | V8: =+H16 -> 62.54751613 | W8: =+I16 -> 72.04316482 | X8: =+J16 -> 72.04316482
C9: Energía Generada | D9: MWh/año | F9: =+'Termo CS'!D35 -> 445892.76 | G9: =+'Termo CC'!D37 -> 838857.6 | H9: =+Hidro!C13 -> 599184 | I9: =+Eolica!C13 -> 419428.8 | J9: =+Solar!C13 -> 287608.32 | K9: =+Geotermico!C13 -> 1018612.8 | L9: =+Biomasa!C13 -> 148920 | Q9: =+Q8+1 -> 2 | R9: 2 | S9: =R9*0.87 -> 1.74 | T9: 39.38633145 | U9: 44.62884968 | V9: =+V8 -> 62.54751613 | W9: =+W8 -> 72.04316482 | X9: =+X8 -> 72.04316482
C10: Consumo de Gas | D10: MMpc/año | F10: =+'Termo CS'!D36 -> 4737610.575 | G10: =+'Termo CC'!D38 -> 5782653.409 | Q10: =+Q9+1 -> 3 | R10: =R9+1 -> 3 | S10: 2.61 | T10: 48.63008145 | U10: 50.6261828 | V10: =+V9 -> 62.54751613 | W10: =+W9 -> 72.04316482 | X10: =+X9 -> 72.04316482
B11: Con IVA | Q11: =+Q10+1 -> 4 | R11: =R10+1 -> 4 | S11: =R11*0.87 -> 3.48 | T11: 57.87383145 | U11: 56.62351592 | V11: 62.54751613 | W11: 72.04316482 | X11: 72.04316482
B12: 7 | C12: Precio Gas | D12: $us/mpc (s/IVA) | E12: =VLOOKUP(B12,$Q$8:$S$18,3,0) -> 6.09 | Q12: =+Q11+1 -> 5 | R12: 5 | S12: =R12*0.87 -> 4.35 | T12: 67.11758145 | U12: 62.62084904 | V12: 62.54751613 | W12: 72.04316482 | X12: 72.04316482
Q13: =+Q12+1 -> 6 | R13: 6 | S13: =R13*0.87 -> 5.22 | T13: 76.36133145 | U13: 68.61818216 | V13: 62.54751613 | W13: 72.04316482 | X13: 72.04316482
C14: Recuperación de Capital | D14: $us/MWh | F14: =+'Termo CS'!D40 -> 17.83583145 | G14: =+'Termo CC'!D42 -> 39.46280087 | H14: =+Hidro!C22 -> 60.54751613 | I14: =+Eolica!C22 -> 67.04316482 | J14: =+Solar!C22 -> 67.04316482 | K14: =+Geotermico!C22 -> 78.3556091 | L14: =+Biomasa!C22 -> 56.98589753 | Q14: =+Q13+1 -> 7 | R14: 7 | S14: =R14*0.87 -> 6.09 | T14: 85.60508145 | U14: 74.61551527 | V14: 62.54751613 | W14: 72.04316482 | X14: 72.04316482
C15: Costo Variable | D15: $us/MWh | F15: =+'Termo CS'!D41 -> 67.76925 | G15: =+'Termo CC'!D43 -> 44.91233182 | H15: =+Hidro!C23 -> 2 | I15: =+Eolica!C23 -> 5 | J15: =+Solar!C23 -> 5 | K15: =+Geotermico!C23 -> 3 | L15: =+Biomasa!C23+Biomasa!C24 -> 31.44935683 | Q15: =+Q14+1 -> 8 | R15: 8 | S15: =R15*0.87 -> 6.96 | T15: 94.84883145 | U15: 80.61284839 | V15: 62.54751613 | W15: 72.04316482 | X15: 72.04316482
C16: Costo de Producción Energía | D16: $us/MWh | F16: =SUM(F14:F15) -> 85.60508145 | G16: =SUM(G14:G15) -> 84.37513269 | H16: =SUM(H14:H15) -> 62.54751613 | I16: =SUM(I14:I15) -> 72.04316482 | J16: =SUM(J14:J15) -> 72.04316482 | K16: 81.3556091 | L16: 88.43525436 | Q16: =+Q15+1 -> 9 | R16: =R15+1 -> 9 | S16: =R16*0.87 -> 7.83 | T16: 104.0925814 | U16: 86.61018151 | V16: 62.54751613 | W16: 72.04316482 | X16: 72.04316482
Q17: 10 | R17: 10 | S17: 8.7 | T17: 113.3363314 | U17: 92.60751463 | V17: 62.54751613 | W17: 72.04316482 | X17: 72.04316482
Q18: 11 | R18: 11 | S18: 9.57 | T18: 122.5800814 | U18: 98.60484775 | V18: 62.54751613 | W18: 72.04316482 | X18: 72.04316482

Sheet Conversion a CC
C3: CENTRAL TERMOELECTRICA CC configuracion 2 x 1 | G3: Financiamiento de la Inversión
C5: Tipo de unidad | D5: SGT 800 | G5: Tasa | H5: 0.045 | I5: anual
C6: Potencia Total ISO | D6: =+D7+D8 -> 47.5 | E6: MW
C7: Potencia ciclo simple | E7: MW
C8: Potencia Turbina de Vapor | D8: 47.5 | E8: MW
C9: Precio FOB | D9: ='Termo CC'!D9-'Termo CS'!D9 -> 626 | E9: $us/kW
C10: Eficiencia | D10: 0
C13: Potencia Total Sitio | D13: =+D14+D15 -> 38.48 | E13: MW
C14: Potencia ciclo simple | D14: =D7*0.87 -> 0 | E14: MW
C15: Potencia Turbina de Vapor | D15: 38.48 | E15: MW
C17: Costo de Instalación
C18: Precio FOB | D18: =D9*D6 -> 29735 | E18: Miles de $us
C19: Transporte + Montaje + Puesta en Marcha | D19: =D18*0.887 -> 26374.945 | E19: Miles de $us
C20: Total Inversión | D20: =SUM(D18:D19) -> 56109.945 | E20: Miles de $us
C21: $us/kW Instalado | D21: =D20/D13 -> 1458.158654
C23: Recuperación Inversión
C24: Tasa de retorno | D24: 0.12 | E24: anual
C25: Vida Útil | D25: 20 | E25: años
C26: Repago anual | D26: =PMT(D24,D25,-D20) -> 7511.930985 | E26: Miles de $us/año
C28: Costo de Producción
C29: Heat Rate | D29: 0 | E29: BTU/kWh
C30: Consumo especifico | D30: =D29/920 -> 0 | E30: pc/kWh
C31: Precio del gas | D31: =1.3*0.87 -> 1.131 | E31: $us/mpc
C32: Costo de Combustible | D32: =D31*D30 -> 0 | E32: $us/MWh
C33: Costo Variable O&M&A | D33: ='Termo CC'!D33 -> 2.931 | E33: $us/MWh
C34: Total Costo Variable de Producción | D34: =D33+D32 -> 2.931 | E34: $us/MWh
C36: Factor de Planta | D36: 0.9
C37: Energía generada | D37: =D13*D36*8760 -> 303376.32 | E37: MWh/año
C38: Gas consumido | D38: =D37*D30 -> 0 | E38: mpc/año
C39: Gas consumido | D39: =D38/35.31/365/1000 -> 0 | E39: MM3dia
C41: Costo Total de Producción
C42: Recuperación Inversión | D42: =D26*1000/D37 -> 24.76109864 | E42: $us/MWh
C43: Costo Variable de Producción | D43: =D34 -> 2.931 | E43: $us/MWh
C44: Costo Total de Producción | D44: =SUM(D42:D43) -> 27.69209864 | E44: $us/MWh
